bitfinex/quotes_ETHUSD_20241103
["timestamp","ask_amount","ask_price","bid_price","bid_amount"]
[1730663636217,4.1149825,2453.6,2453.0,0.7687]
[1730663636422,3.66833,2453.5,2453.0,0.7687]
[1730663636622,4.1149825,2453.6,2453.1,3.66874]
[1730663637262,3.66833,2453.5,2453.0,4.43752]
[1730663637576,0.4468125,2453.6,2453.1,3.66881]
[1730663637884,4.1149025,2453.6,2453.1,3.66881]
[1730663639280,3.66809,2453.6,2453.1,3.66881]
[1730663640607,3.66809,2453.6,2453.2,3.66867]
[1730663640783,0.0604,2453.7,2453.3,3.66852]
[1730663641078,3.72833,2453.7,2453.3,3.66852]
[1730663641275,0.0604,2453.7,2453.3,3.66852]
[1730663641874,3.72835,2453.7,2453.3,3.66852]
[1730663642176,3.72835,2453.7,2453.2,3.66861]
[1730663642660,3.66813,2453.6,2453.1,3.66873]
[1730663642864,3.66813,2453.6,2453.1,7.33748]
[1730663643182,3.72835,2453.7,2453.2,3.66864]
[1730663643549,7.39636,2453.7,2453.2,3.66864]
[1730663643755,3.72835,2453.7,2453.2,3.66864]
[1730663643957,7.39635,2453.7,2453.2,3.66864]
[1730663644278,3.72835,2453.7,2453.2,3.66864]
[1730663644491,7.39639,2453.7,2453.2,3.66864]
[1730663646055,3.72835,2453.7,2453.2,3.66864]
[1730663646256,7.39639,2453.7,2453.2,3.66864]
[1730663646454,3.72835,2453.7,2453.2,3.66864]
[1730663646695,3.66809,2453.6,2453.1,7.33747]
[1730663647754,3.66809,2453.6,2453.1,3.66873]
[1730663647959,3.66809,2453.6,2453.1,7.33746]
[1730663648297,3.72835,2453.7,2453.2,3.6686]
[1730663648500,7.39637,2453.7,2453.2,3.6686]
[1730663649057,3.66795,2453.7,2453.3,0.765]
[1730663649295,7.33596,2453.7,2453.3,0.765]
[1730663649494,3.66808,2453.6,2453.3,0.765]
[1730663653614,3.66778,2453.8,2453.3,0.765]
[1730663653814,3.66812,2453.6,2453.3,0.765]
[1730663657627,3.66812,2453.6,2453.1,3.66872]
[1730663657628,3.66823,2453.5,2453.1,0.765]
[1730663657841,3.66859,2453.3,2452.9,0.765]
[1730663657987,4.402296,2453.3,2452.9,0.765]
[1730663658190,3.66859,2453.3,2452.9,0.765]
[1730663658396,3.66874,2453.2,2452.9,0.765]
[1730663659103,4.94988692,2453.4,2452.9,4.43405]
[1730663659453,4.95002692,2453.3,2452.9,4.43405]
[1730663660190,1.28149692,2453.3,2452.9,4.43405]
[1730663661293,1.28149692,2453.2,2452.9,4.43405]
[1730663662207,4.95003692,2453.3,2452.9,4.43405]
[1730663662432,1.28149692,2453.2,2452.9,4.43405]
[1730663662996,1.28149692,2453.2,2453.0,3.66896]
[1730663663436,1.28149692,2453.1,2453.0,3.66896]
[1730663663656,1.28149692,2453.1,2452.9,4.4341]
[1730663665042,1.28149692,2453.0,2452.9,4.4341]
[1730663666035,1.71215512,2453.1,2452.9,4.4341]
[1730663666036,1.28149692,2453.1,2452.9,4.4341]
[1730663666233,1.28149692,2453.1,2453.0,3.66897]
[1730663666944,1.28149692,2453.1,2452.9,4.4341]
[1730663667131,1.71215512,2453.2,2452.9,8.1032]
[1730663667132,1.28149692,2453.0,2452.9,8.1032]
[1730663667935,1.28149692,2453.0,2452.9,4.4341]
[1730663668135,1.71215512,2453.1,2452.9,4.4341]
[1730663668136,1.28149692,2453.1,2452.9,4.4341]
[1730663669337,1.28149692,2453.0,2452.9,4.4341]
[1730663670268,1.28149692,2453.0,2452.9,4.43412]
[1730663670484,1.28149692,2453.1,2452.9,4.43412]
[1730663671488,1.28149692,2453.1,2453.0,3.66897]
[1730663672400,1.71215512,2453.2,2453.0,3.66897]
[1730663672912,1.28351327,2453.1,2453.0,7.33785]
[1730663673204,1.28351327,2453.2,2453.1,3.66882]
[1730663673402,1.71215512,2453.3,2453.2,3.66867]
[1730663675366,2.13915786,2453.3,2453.2,3.66867]
[1730663675570,2.13915786,2453.4,2453.1,3.66881]
[1730663675802,1.71192566,2453.2,2453.0,4.46489]
[1730663676006,1.71192566,2453.1,2452.8,3.66918]
[1730663676315,1.28403561,2453.0,2452.8,3.66918]
[1730663676610,1.28403561,2452.9,2452.8,3.66918]
[1730663677607,1.28403561,2453.0,2452.9,3.66912]
[1730663678323,1.71192566,2453.1,2452.9,3.66912]
[1730663678639,1.28415272,2453.0,2452.9,3.66912]
[1730663679134,1.71192566,2453.1,2452.9,3.66912]
[1730663680227,1.71192566,2453.1,2452.9,3.66906]
[1730663680623,1.71192566,2453.1,2452.9,7.33811]
[1730663680794,1.71192566,2453.1,2452.9,3.66905]
[1730663681932,1.28418617,2453.0,2452.9,3.66905]
[1730663682307,1.28418617,2453.0,2452.8,3.66926]
[1730663682628,1.71192566,2453.1,2452.9,3.66905]
[1730663683428,1.71192566,2453.1,2452.9,3.6691]
[1730663684037,0.0604,2453.0,2452.5,4.49001]
[1730663684214,3.72938,2453.0,2452.6,3.66948]
[1730663684931,3.66914,2452.9,2452.5,4.49001]
[1730663685232,3.66914,2452.9,2452.4,1.39368136]
[1730663685233,3.66971,2452.6,2452.1,4.49062]
[1730663685443,1.45408136,2452.9,2451.4,0.01]
[1730663685444,3.66996,2452.4,2451.9,8.16145]
[1730663685604,3.66996,2452.4,2452.0,0.48452095]
[1730663685930,3.66995,2452.4,2451.9,4.49091]
[1730663686507,3.66995,2452.4,2451.9,8.16146]
[1730663686705,3.66995,2452.4,2451.9,4.49091]
[1730663686921,0.740004,2452.4,2452.0,3.67046]
[1730663688130,4.409944,2452.4,2451.9,4.49091]
[1730663688733,3.67016,2452.3,2451.7,4.49122]
[1730663688930,3.67028,2452.2,2451.8,3.67076]
[1730663689098,4.4783244,2452.2,2451.7,4.49122]
[1730663689293,0.740004,2452.4,2451.7,4.49122]
[1730663689294,4.409874,2452.4,2451.8,1.39368136]
[1730663689620,3.73024,2452.5,2452.0,5.06414136]
[1730663689822,7.40006,2452.5,2452.0,5.06414136]
[1730663690132,3.66989,2452.4,2451.9,0.8204]
[1730663690292,3.66989,2452.4,2451.9,4.49101]
[1730663690492,3.73022,2452.5,2451.9,0.8204]
[1730663690722,0.0604,2452.7,2452.1,3.67024]
[1730663690911,3.66965,2452.6,2452.1,3.67024]
[1730663691507,0.0604,2452.7,2452.2,0.8043]
[1730663691706,3.7299,2452.7,2452.2,4.47436]
[1730663693035,7.33873,2452.8,2452.3,3.67]
[1730663693201,3.66943,2452.7,2452.3,3.67]
[1730663693850,4.95072694,2452.7,2452.3,3.67]
[1730663694057,4.95072694,2452.7,2452.2,2.19798136]
[1730663694219,1.28129694,2452.6,2452.2,5.86813136]
[1730663694415,1.28129694,2452.7,2452.3,3.66994]
[1730663694662,1.28129694,2452.7,2452.6,0.8043]
[1730663694841,1.28129694,2452.8,2452.6,0.8043]
[1730663695850,4.95057694,2452.8,2452.4,4.47415]
[1730663696719,4.95057694,2452.8,2452.4,0.8043]
[1730663696919,4.95057694,2452.8,2452.2,1.39368136]
[1730663696920,5.01118694,2452.7,2452.2,4.47438]
[1730663697149,8.68069694,2452.7,2452.2,4.47438]
[1730663697415,10.0724751,2452.7,2452.2,4.47438]
[1730663697630,3.66964,2452.6,2452.2,0.8043]
[1730663697957,6.4029651,2452.7,2452.2,4.47445]
[1730663699556,10.0724651,2452.7,2452.2,4.47445]
[1730663699714,6.4029651,2452.7,2452.2,4.47445]
[1730663700119,2.7334751,2452.7,2452.3,3.66993]
[1730663700347,1.28129694,2452.8,2452.4,3.66984]
[1730663700985,1.28129694,2452.8,2452.6,0.8043]
[1730663701357,1.28129694,2452.9,2452.6,0.8043]
[1730663702593,1.28129694,2452.8,2452.6,0.8043]
[1730663702799,1.28129694,2452.9,2452.6,4.47381]
[1730663703872,1.28129694,2452.8,2452.6,4.47381]
[1730663704072,1.28129694,2452.9,2452.7,3.66942]
[1730663704398,1.28129694,2452.9,2452.4,0.8043]
[1730663704598,1.28129694,2452.8,2452.4,0.8043]
[1730663705293,1.28129694,2452.8,2452.4,4.47415]
[1730663705504,1.58026623,2452.9,2452.5,3.66971]
[1730663705810,3.66943,2452.7,2452.4,0.8043]
[1730663705951,4.95072694,2452.7,2452.4,0.8043]
[1730663706151,1.28129694,2452.6,2452.4,0.8043]
[1730663706915,4.95072694,2452.7,2452.4,0.8043]
[1730663707701,1.28129694,2452.7,2452.4,0.8043]
[1730663710754,1.28129694,2452.7,2452.4,4.47414]
[1730663711810,1.28129694,2452.7,2452.5,3.66971]
[1730663712011,1.28129694,2452.8,2452.7,3.66942]
[1730663713224,1.70839593,2453.0,2452.6,0.8248]
[1730663713225,2.98969287,2452.9,2452.6,0.8248]
[1730663713522,1.28129694,2452.8,2452.5,3.66971]
[1730663714750,1.28129694,2452.8,2452.5,7.33935]
[1730663714954,1.28129694,2452.8,2452.5,3.66964]
[1730663715449,1.28129694,2452.8,2452.5,7.33927]
[1730663715628,1.28129694,2452.8,2452.5,3.66963]
[1730663716019,1.28129694,2452.8,2452.5,7.33928]
[1730663716324,1.28129694,2452.8,2452.6,3.66956]
[1730663717127,1.28129694,2452.9,2452.8,3.66927]
[1730663717319,1.70839593,2453.0,2452.8,3.66927]
[1730663717320,1.28129694,2453.0,2452.8,1.39368136]
[1730663717660,1.28129694,2453.1,2452.8,5.06294136]
[1730663718515,1.28129694,2453.0,2452.8,1.39368136]
[1730663718918,1.28129694,2453.0,2452.7,8.16356]
[1730663720251,1.28129694,2453.0,2452.7,4.49414]
[1730663721053,1.28129694,2452.9,2452.7,4.49414]
[1730663722857,1.28129694,2452.9,2452.7,8.16348]
[1730663724846,1.28129694,2452.9,2452.7,4.49414]
[1730663725217,1.28129694,2452.9,2452.7,4.49421]
[1730663725461,1.28129694,2452.9,2452.8,3.66927]
[1730663726458,1.28129694,2453.1,2452.9,3.66912]
[1730663726831,1.28129694,2453.2,2453.1,3.66882]
[1730663727052,1.28129694,2453.2,2453.0,4.43884]
[1730663727272,1.28129694,2453.3,2453.0,4.43884]
[1730663729883,4.95012694,2453.1,2452.6,4.43934]
[1730663730255,1.28129694,2453.1,2452.6,4.43934]
[1730663730455,1.28129694,2453.1,2452.7,3.75089279]
[1730663731760,4.95012694,2453.1,2452.7,3.66936]
[1730663732787,1.28129694,2453.1,2452.7,7.33869]
[1730663733177,2.31293564,2453.1,2452.6,0.7699]
[1730663733418,1.28129694,2453.0,2452.6,4.43939]
[1730663734091,4.95030694,2453.0,2452.6,0.7699]
[1730663734290,0.0604,2452.8,2452.5,3.66968]
[1730663734662,1.34169694,2452.8,2452.5,3.66968]
[1730663736305,1.28129694,2452.9,2452.6,3.66949]
[1730663736683,1.28129694,2452.9,2452.5,3.66968]
[1730663736684,1.28129694,2452.9,2452.5,3.7512204]
[1730663737001,1.28129694,2452.9,2452.6,3.66955]
[1730663737162,1.28129694,2452.9,2452.5,3.66965]
[1730663737669,1.28129694,2452.9,2452.5,7.33927]
[1730663738163,1.28129694,2452.9,2452.5,3.66962]
[1730663738589,1.28129694,2452.8,2452.5,3.66962]
[1730663739713,1.28129694,2452.8,2452.5,7.33927]
[1730663739874,1.28129694,2452.8,2452.5,3.66962]
[1730663740719,1.28129694,2452.8,2452.6,3.66955]
[1730663742378,1.28129694,2452.8,2452.3,5.06425798]
[1730663742379,0.0604,2452.7,2452.3,3.66989]
[1730663742721,1.34169694,2452.7,2452.4,3.66984]
[1730663746015,1.34169694,2452.7,2452.6,3.66957]
[1730663746016,1.28129694,2452.7,2452.6,3.66957]
[1730663746313,1.28129694,2452.8,2452.6,4.45247]
[1730663747811,1.28129694,2452.8,2452.6,3.66957]
[1730663748714,1.28129694,2452.9,2452.7,4.45221]
[1730663748925,1.28129694,2452.9,2452.8,3.66927]
[1730663749089,1.28129694,2453.0,2452.9,3.66912]
[1730663749995,1.28129694,2453.1,2453.0,3.66897]
[1730663752227,1.28129694,2453.1,2453.0,5.87066243]
[1730663752426,1.28129694,2453.3,2453.1,4.47662]
[1730663752631,1.28129694,2453.3,2453.2,5.06256243]
[1730663752791,1.28129694,2453.4,2453.3,3.66852]
[1730663754529,1.28129694,2453.5,2453.4,3.66837]
[1730663755035,1.28129694,2453.5,2453.4,5.87006243]
[1730663755188,1.28129694,2453.7,2453.6,3.66807]
[1730663756311,1.28129694,2453.8,2453.6,3.66807]
[1730663760136,1.28129694,2453.8,2453.5,3.66816]
[1730663761138,1.28129694,2453.8,2453.4,4.47615]
[1730663761343,5.00933694,2453.9,2453.4,8.14445]
[1730663761513,1.28129694,2453.8,2453.5,3.66822]
[1730663762225,4.94909694,2453.8,2453.2,4.47645]
[1730663762550,5.00969694,2453.7,2453.2,7.33719]
[1730663762755,1.28129694,2453.6,2453.2,7.33717]
[1730663763546,1.28129694,2453.6,2453.3,3.66845]
[1730663764803,4.94937694,2453.6,2453.2,3.66858]
[1730663765073,4.94937694,2453.6,2453.0,4.47667]
[1730663765074,1.34169694,2453.5,2453.0,4.47667]
[1730663765273,1.34169694,2453.5,2453.1,3.6688]
[1730663765572,1.34169694,2453.5,2453.0,4.47667]
[1730663765573,5.00993694,2453.5,2453.0,4.47667]
[1730663765932,5.00993694,2453.5,2453.1,3.66882]
[1730663766977,1.34169694,2453.5,2453.0,0.8078]
[1730663767175,1.28129694,2453.6,2453.3,3.6685]
[1730663767378,1.28129694,2453.6,2453.2,3.66864]
[1730663768334,3.66832,2453.5,2453.0,4.4767]
[1730663768540,0.0604,2453.4,2453.1,3.66881]
[1730663769243,0.0604,2453.4,2453.0,4.47677]
[1730663769477,4.52235559,2453.4,2453.0,3.66897]
[1730663769636,0.0604,2453.4,2453.1,3.66882]
[1730663773143,0.0604,2453.4,2453.0,3.66896]
[1730663773879,1.34169694,2453.4,2453.0,3.66896]
[1730663774057,0.0604,2453.4,2453.0,3.66896]
[1730663774383,0.0604,2453.4,2453.1,3.66878]
[1730663774562,0.0604,2453.4,2452.7,3.66927]
[1730663774563,3.66863,2453.3,2452.7,3.66927]
[1730663774767,0.0604,2453.2,2452.8,3.66919]
[1730663776010,3.72914,2453.2,2452.7,3.66927]
[1730663776163,3.72914,2453.2,2452.7,7.33862]
[1730663776842,3.66905,2453.0,2452.4,5.06388683]
[1730663777260,5.01061694,2453.1,2452.7,3.6694]
[1730663778066,0.0604,2453.1,2452.7,4.47245]
[1730663778384,0.0604,2453.1,2452.8,3.66921]
[1730663781001,3.66907,2453.0,2452.5,4.47549]
[1730663781304,3.66907,2453.0,2452.4,1.39411683]
[1730663781505,0.73227729,2453.1,2452.2,5.06426683]
[1730663781506,3.66931,2452.8,2452.2,5.06426683]
[1730663781790,0.0604,2452.9,2452.4,3.66974]
[1730663781791,0.0604,2452.7,2452.4,3.66974]
[1730663782194,0.0604,2452.9,2452.5,0.8874463]
[1730663782395,1.28129694,2453.0,2452.7,3.6694]
[1730663782802,5.01052694,2453.1,2452.7,3.6694]
[1730663783003,1.34169694,2453.1,2452.7,3.6694]
[1730663783363,1.34169694,2453.1,2452.8,3.66919]
[1730663783605,1.34169694,2453.1,2452.7,3.66941]
[1730663783606,0.0604,2453.1,2452.7,3.66941]
[1730663784104,0.0604,2453.1,2452.8,3.66926]
[1730663784804,0.0604,2453.1,2452.7,3.66942]
[1730663786415,3.72924,2453.1,2452.7,3.66942]
[1730663786705,5.01053694,2453.1,2452.7,3.66942]
[1730663786905,6.04928823,2453.1,2452.5,4.47559]
[1730663787109,3.66924,2452.9,2452.4,3.66985]
[1730663787912,3.66928,2452.8,2452.4,3.66985]
[1730663788131,0.0604,2452.7,2452.4,3.66985]
[1730663788332,0.0604,2452.7,2452.3,3.66992]
[1730663788625,0.0604,2452.7,2452.1,7.47612]
[1730663788626,3.66959,2452.6,2452.1,7.47612]
[1730663788930,7.39945,2452.7,2452.2,3.6701]
[1730663789448,3.6696,2452.6,2452.2,3.6701]
[1730663789601,0.0604,2452.5,2452.2,3.6701]
[1730663790128,3.73015,2452.5,2452.0,7.34083]
[1730663790329,0.0604,2452.5,2452.0,3.67037]
[1730663790504,0.0604,2452.5,2452.1,3.67029]
[1730663791589,0.0604,2452.5,2452.2,3.67016]
[1730663792433,0.0604,2452.5,2452.1,3.6703]
[1730663792636,3.73013,2452.5,2452.0,7.34076]
[1730663793090,3.73013,2452.5,2452.1,3.67029]
[1730663793526,0.0604,2452.5,2452.1,3.67032]
[1730663795021,0.0604,2452.5,2452.2,3.67015]
[1730663796314,0.0604,2452.5,2452.2,7.34024]
[1730663796531,0.0604,2452.5,2452.2,3.67009]
[1730663797134,0.0604,2452.5,2452.1,3.6703]
[1730663797610,3.73013,2452.5,2452.1,3.6703]
[1730663797806,3.73013,2452.5,2451.8,3.67066]
[1730663797807,3.67004,2452.3,2451.8,3.67066]
[1730663798007,0.0604,2452.2,2451.9,3.67055]
[1730663798238,0.0604,2452.2,2452.0,3.67047]
[1730663800045,0.0604,2452.2,2451.8,3.67073]
[1730663800244,0.0604,2452.2,2451.9,3.67052]
[1730663801866,0.0604,2452.2,2452.0,3.67044]
[1730663803088,3.73027,2452.4,2452.0,3.67044]
[1730663805522,0.0604,2452.4,2452.0,3.67044]
[1730663805866,4.95096694,2452.6,2452.2,3.6701]
[1730663805867,3.73007,2452.6,2452.2,3.6701]
[1730663806166,3.66974,2452.5,2452.0,3.67044]
[1730663806365,3.66974,2452.5,2452.1,3.67029]
[1730663806725,3.73007,2452.6,2452.1,3.67029]
[1730663807133,3.73007,2452.6,2452.1,7.34054]
[1730663808599,5.37777593,2452.8,2452.4,3.6698]
[1730663808600,1.34169694,2452.8,2452.4,3.6698]
[1730663808872,0.0604,2452.8,2452.4,3.6698]
[1730663809643,5.01098694,2452.8,2452.4,3.6698]
[1730663810252,3.66943,2452.7,2452.3,3.67001]
[1730663811476,5.01097694,2452.8,2452.3,3.66993]
[1730663812068,5.01097694,2452.8,2452.3,7.33988]
[1730663812389,5.01097694,2452.8,2452.4,3.66986]
[1730663812390,3.72968,2452.8,2452.4,3.66986]
[1730663813650,1.70839593,2453.0,2452.4,3.66986]
[1730663813651,5.01070694,2453.0,2452.6,3.66956]
[1730663813851,5.01070694,2453.0,2452.5,4.48664]
[1730663814157,1.34169694,2453.0,2452.5,4.48664]
[1730663814378,3.66913,2452.9,2452.5,4.48664]
[1730663815290,4.95042694,2452.9,2452.5,4.48664]
[1730663815595,3.66913,2452.9,2452.5,4.48664]
[1730663816490,4.95042694,2452.9,2452.5,4.48664]
[1730663816694,3.66913,2452.9,2452.5,4.48664]
[1730663817290,4.95042694,2452.9,2452.5,4.48664]
[1730663818280,4.95042694,2452.9,2452.5,0.817]
[1730663819004,4.95042694,2452.9,2452.5,4.4867]
[1730663822508,1.28129694,2452.8,2452.5,4.4867]
[1730663822797,4.95042694,2452.9,2452.5,4.4867]
[1730663823001,1.28129694,2452.8,2452.5,4.4867]
[1730663823187,4.95042694,2452.9,2452.5,4.4867]
[1730663823570,1.28129694,2452.9,2452.5,4.4867]
[1730663823769,4.95043694,2452.9,2452.5,4.4867]
[1730663824768,1.28129694,2452.8,2452.5,4.4867]
[1730663825908,1.28129694,2452.9,2452.5,4.48668]
[1730663826267,1.28129694,2452.9,2452.5,0.817]
[1730663826464,1.28129694,2453.1,2452.9,3.66912]
[1730663826666,1.28129694,2453.2,2452.9,3.66912]
[1730663827503,1.28129694,2453.2,2453.0,3.6689]
[1730663827684,1.28129694,2453.2,2452.9,3.66911]
[1730663828896,1.28129694,2453.2,2453.0,3.66896]
[1730663829412,1.28129694,2453.3,2453.0,3.66896]
[1730663829579,1.28129694,2453.2,2453.0,3.66896]
[1730663830507,1.28129694,2453.3,2453.0,3.6689]
[1730663830715,1.28129694,2453.3,2453.1,3.66875]
[1730663831792,1.28129694,2453.3,2453.1,3.66873]
[1730663832677,1.28129694,2453.3,2452.9,3.75055922]
[1730663832678,1.28129694,2453.3,2452.9,3.66903]
[1730663832882,1.28129694,2453.3,2453.0,3.66895]
[1730663834293,1.28129694,2453.4,2453.0,3.66895]
[1730663835294,1.28129694,2453.3,2453.0,3.66895]
[1730663835508,1.28129694,2453.4,2453.0,3.66895]
[1730663836021,1.28129694,2453.4,2452.9,3.66903]
[1730663836022,4.94968694,2453.4,2452.9,3.66903]
[1730663836228,4.94968694,2453.4,2452.9,7.33805]
[1730663836229,2.1529416,2453.3,2452.9,7.33805]
[1730663836518,2.1529416,2453.3,2452.9,3.66902]
[1730663836726,2.1529416,2453.3,2452.9,7.33808]
[1730663836928,1.34169694,2453.3,2452.9,7.33808]
[1730663837383,3.66869,2453.2,2452.8,0.8224]
[1730663837585,3.66869,2453.2,2452.7,3.66932]
[1730663837818,0.0604,2453.1,2452.7,3.66932]
[1730663838027,0.0604,2453.1,2452.7,7.33867]
[1730663838520,0.0604,2453.1,2452.9,3.66911]
[1730663838715,0.0604,2453.1,2452.8,3.66927]
[1730663840038,0.0604,2453.1,2452.8,3.66815858]
[1730663840708,0.0604,2453.1,2452.9,3.6691]
[1730663841295,0.0604,2453.1,2452.6,0.8224]
[1730663841632,0.0604,2453.1,2452.6,4.49184]
[1730663841799,0.0604,2453.1,2452.7,3.66942]
[1730663842135,0.56143769,2453.1,2452.8,3.66926]
[1730663842336,0.0604,2453.1,2452.8,7.3384]
[1730663842840,0.0604,2453.1,2452.9,3.66909]
[1730663843348,4.94983694,2453.3,2452.9,3.66909]
[1730663843542,5.01023694,2453.3,2452.9,3.66909]
[1730663844137,5.01023694,2453.3,2452.8,7.33838]
[1730663844297,0.67186329,2453.2,2452.8,7.33838]
[1730663845537,0.67186329,2453.2,2452.9,3.6691]
[1730663850396,0.67186329,2453.2,2452.8,3.66926]
[1730663850919,0.67186329,2453.2,2452.9,3.66905]
[1730663851230,1.95316023,2453.2,2452.9,3.66905]
[1730663851997,1.28129694,2453.2,2452.9,3.66905]
[1730663857255,1.28129694,2453.1,2452.9,3.66905]
[1730663858151,1.28129694,2453.1,2452.8,3.66926]
[1730663858440,1.28129694,2453.1,2453.0,3.66897]
[1730663859647,1.28129694,2453.1,2452.9,3.66912]
[1730663859853,1.28129694,2453.1,2452.9,7.33818]
[1730663860148,1.28129694,2453.1,2452.9,3.66906]
[1730663860308,1.58630623,2453.1,2452.7,3.66937]
[1730663860649,0.0604,2453.0,2452.8,3.66919]
[1730663860834,1.34169694,2453.0,2452.8,3.66919]
[1730663861551,1.34169694,2453.0,2452.9,3.66912]
[1730663863129,1.34169694,2453.0,2452.8,3.66919]
[1730663863562,1.34169694,2453.0,2452.9,3.66912]
[1730663864744,1.34169694,2453.0,2452.8,3.66919]
[1730663866196,1.34169694,2453.0,2452.8,7.33837]
[1730663866361,1.34169694,2453.0,2452.8,3.66923]
[1730663866761,1.34169694,2453.0,2452.9,3.66912]
[1730663867141,2.31826419,2453.0,2452.6,0.8224]
[1730663867373,1.28387134,2452.8,2452.5,3.97099582]
[1730663867673,1.28387134,2452.8,2452.6,3.66955]
[1730663868160,1.70839593,2452.9,2452.8,4.43737]
[1730663868369,1.70839593,2453.0,2452.9,3.66912]
[1730663868699,1.28408366,2453.0,2452.9,3.66912]
[1730663868973,1.28408982,2453.0,2452.9,5.06308375]
[1730663869123,1.70839593,2453.2,2452.9,5.06308375]
[1730663869124,1.28398462,2453.2,2453.1,3.66882]
[1730663873565,1.28398462,2453.2,2453.1,5.89428375]
[1730663873780,1.70839593,2453.3,2453.1,4.50032]
[1730663874083,1.70839593,2453.3,2453.2,3.66867]
[1730663874374,0.0604,2453.6,2453.2,3.66867]
[1730663874941,0.0604,2453.6,2453.3,3.66852]
[1730663877080,0.0604,2453.6,2453.1,4.50032]
[1730663877081,3.72848,2453.6,2453.2,3.66866]
[1730663878443,0.0604,2453.6,2453.2,3.66867]
[1730663878743,3.72848,2453.6,2453.2,3.66867]
[1730663880548,3.72848,2453.6,2453.1,8.16906]
[1730663880752,3.72848,2453.6,2453.1,8.16898]
[1730663880973,3.72848,2453.6,2453.1,7.33748]
[1730663881308,3.72848,2453.6,2453.1,3.66874]
[1730663881764,3.72848,2453.6,2453.1,3.66873]
[1730663882359,1.28420778,2453.2,2453.1,3.66873]
[1730663887960,1.71227704,2453.2,2452.9,3.66906]
[1730663888213,1.28411576,2453.1,2452.9,3.66906]
[1730663888939,1.28411576,2453.1,2453.0,4.49267]
[1730663889291,1.28411576,2453.2,2453.1,3.66882]
[1730663893039,3.66808,2453.6,2453.1,3.66882]
[1730663894144,1.28408045,2453.2,2453.1,3.66882]
[1730663902406,1.28408045,2453.3,2453.2,3.66867]
[1730663904272,1.28408045,2453.4,2453.3,3.66852]
[1730663904782,1.28408045,2453.4,2453.3,4.43592]
[1730663908851,1.28408045,2453.5,2453.3,4.43592]
[1730663910361,1.28408045,2453.5,2453.3,0.7674]
[1730663910556,1.28408045,2453.5,2453.4,3.66837]
[1730663911684,0.28408045,2453.5,2453.4,3.66837]
[1730663912393,1.71210727,2453.6,2453.4,3.66837]
[1730663913284,1.71210727,2453.6,2453.3,0.7674]
[1730663913483,1.71210727,2453.6,2453.3,4.43592]
[1730663914078,1.71210727,2453.6,2453.3,3.66852]
[1730663914397,1.71210727,2453.5,2453.3,3.66852]
[1730663917502,0.0604,2453.4,2453.0,3.66888]
[1730663917661,1.77250727,2453.4,2453.1,3.66875]
[1730663918800,0.0604,2453.4,2453.1,3.66875]
[1730663919600,0.0604,2453.4,2453.2,3.66858]
[1730663919805,0.0604,2453.4,2452.8,3.66926]
[1730663919806,1.71177969,2453.5,2453.4,3.66825]
[1730663920001,1.71177969,2453.6,2453.4,3.66825]
[1730663920867,1.28372123,2453.5,2453.4,3.66825]
[1730663924505,1.28372123,2453.6,2453.5,3.66822]
[1730663924809,1.28372123,2453.6,2453.5,4.42022]
[1730663926268,1.28372123,2453.6,2453.5,5.81418375]
[1730663926980,1.28372123,2453.8,2453.6,3.66807]
[1730663927193,1.28372123,2453.9,2453.8,3.66778]
[1730663927397,1.28321425,2454.0,2453.7,5.81389375]
[1730663927585,1.28321425,2454.0,2453.9,3.66763]
[1730663928395,1.28321425,2454.1,2453.9,3.66763]
[1730663928927,1.28321425,2454.0,2453.9,3.66763]
[1730663929138,1.28321425,2454.1,2453.9,3.66763]
[1730663929424,1.28321425,2454.3,2454.2,3.66718]
[1730663929625,1.28321425,2454.3,2454.2,5.06114375]
[1730663929782,1.71177969,2454.4,2454.3,3.66703]
[1730663929783,1.28321425,2454.4,2454.3,3.66703]
[1730663930426,1.28321425,2454.5,2454.3,3.66688]
[1730663931524,1.28321425,2454.6,2454.3,3.66688]
[1730663932026,1.28321425,2454.6,2454.4,4.44586]
[1730663932887,1.40404325,2454.7,2454.4,4.44586]
[1730663933215,1.40404325,2454.7,2454.4,5.83982375]
[1730663934005,0.060429,2454.7,2454.6,5.06054375]
[1730663934275,0.060429,2454.7,2454.6,5.83954375]
[1730663934629,0.060429,2454.7,2454.6,5.92100955]
[1730663935441,0.060429,2454.7,2454.6,6.38954375]
[1730663936066,0.060429,2454.7,2454.6,6.47100289]
[1730663936642,0.060429,2454.7,2454.6,6.38954375]
[1730663937644,0.060429,2454.7,2454.6,6.47100301]
[1730663938760,0.060429,2454.7,2454.6,6.38954375]
[1730663938963,0.060429,2454.7,2454.6,9.47100303]
[1730663939171,0.060429,2454.7,2454.6,9.38954375]
[1730663940472,0.060429,2454.7,2454.6,8.83954375]
[1730663940647,0.060429,2454.7,2454.6,3.66658]
[1730663940845,0.060429,2454.7,2454.5,3.66661]
[1730663941243,0.060429,2454.7,2454.5,7.33326]
[1730663941576,0.060429,2454.7,2454.6,5.06054375]
[1730663942680,0.060429,2454.7,2454.6,1.39396375]
[1730663942833,0.120829,2454.7,2454.4,3.66687]
[1730663943033,0.120829,2454.7,2454.3,3.66692]
[1730663943479,0.120829,2454.7,2454.2,0.779]
[1730663943480,3.66659,2454.6,2454.2,0.779]
[1730663943652,3.66659,2454.6,2454.1,3.66721]
[1730663943833,0.0604,2454.5,2454.1,3.66721]
[1730663945078,0.0604,2454.5,2454.0,8.06136375]
[1730663945079,3.72725,2454.5,2454.0,8.06136375]
[1730663945373,3.72725,2454.5,2454.2,3.66708]
[1730663945374,0.0604,2454.5,2454.2,3.66708]
[1730663945588,0.060429,2454.7,2454.3,3.66703]
[1730663945734,0.060429,2454.7,2454.2,0.7641]
[1730663945938,0.060429,2454.7,2454.5,3.66673]
[1730663946353,0.060429,2454.7,2454.6,4.43068]
[1730663946744,0.060429,2454.7,2454.5,3.66673]
[1730663947690,0.060429,2454.7,2454.5,7.3333]
[1730663948187,0.060429,2454.7,2454.6,3.66658]
[1730663948342,0.060429,2454.7,2454.5,3.66665]